Workbook

Sheet Using Table
AI1: Round | AJ1: Left | AK1: last
AE2: =AI9 -> 0 | AF2: =AE2*100 -> 0 | AI2: =IF(AF2<100,0,LEFT(AF2,1)) -> 0 | AJ2: =AJ11*1 -> 0 | AK2: =AL11*1 -> 0 | AL2: =LEN(AI2) -> 1 | AM2: =LEFT(AF2,2) -> 0 | AN2: =MID(AF2,2,1) -> 
AK3: =IF(AI4>=-1*$AI$9,AJ4,"") -> 0 | AN3: =IF(AF2<10,0,IF(AF2>=100,AI2&"."&AN2,"")) -> 0
B4: Enter Z-score = | I4: Answer P = | J4: =IF(F4="","",NORMSDIST(F4)) ->  | N4: (Cumulative area from the left) | T4: Fill Green Cells Only
AD5: =IF(AI9<0,LEN(AJ10)+1,LEN(AJ10)) -> 1
AI9: =F4 -> 0 | AK9: Each Side, nearest is:
AJ10: =ROUND(AI9,2) -> 0 | AK10: =AJ11&AK11 -> 00
AJ11: =IF(AI9<0,LEFT(AJ10,4),LEFT(AJ10,3)) -> 0 | AK11: =IF(AND(AI9>=0,AD5=3),0,IF(AND(AI9<0,AD5=5),0,IF(AND(AI9>=0,AD5=1),0,IF(AND(AI9<0,AD5=3),0,RIGHT(AJ10,1))))) -> 0 | AL11: =AK11/100 -> 0
D14: Negative Z- Scores | P14: Positive Z- Scores
B16: Z | C16: 0 | D16: 0.01 | E16: 0.02 | F16: 0.03 | G16: 0.04 | H16: 0.05 | I16: 0.06 | J16: 0.07 | K16: 0.08 | L16: 0.09 | N16: Z | O16: 0 | P16: 0.01 | Q16: 0.02 | R16: 0.03 | S16: 0.04 | T16: 0.05 | U16: 0.06 | V16: 0.07 | W16: 0.08 | X16: 0.09 | AZ16: 19
B17: -3.1 | C17: =NORMSDIST(B17-$C$16) -> 0.0009676032132 | D17: =NORMSDIST(B17-$D$16) -> 0.0009354367195 | E17: =NORMSDIST(B17-$E$16) -> 0.0009042551998 | F17: =NORMSDIST(B17-$F$16) -> 0.0008740315156 | G17: =NORMSDIST(B17-$G$16) -> 0.0008447391735 | H17: =NORMSDIST(B17-$H$16) -> 0.0008163523128 | I17: =NORMSDIST(B17-$I$16) -> 0.0007888456944 | J17: =NORMSDIST(B17-$J$16) -> 0.0007621946881 | K17: =NORMSDIST(B17-$K$16) -> 0.0007363752616 | L17: =NORMSDIST(B17-$L$16) -> 0.0007113639686 | N17: 0 | O17: =NORMSDIST(N17+$O$16) -> 0.5 | P17: =NORMSDIST(N17+$P$16) -> 0.5039893563 | Q17: =NORMSDIST(N17+$Q$16) -> 0.5079783137 | R17: =NORMSDIST(N17+$R$16) -> 0.5119664734 | S17: =NORMSDIST(N17+$S$16) -> 0.5159534369 | T17: =NORMSDIST(N17+$T$16) -> 0.5199388058 | U17: =NORMSDIST(N17+$U$16) -> 0.5239221827 | V17: =NORMSDIST(N17+$V$16) -> 0.5279031702 | W17: =NORMSDIST(N17+$W$16) -> 0.531881372 | X17: =NORMSDIST(N17+$X$16) -> 0.5358563926 | AZ17: 23
B18: -3 | C18: 0.001349898032 | D18: 0.001306238449 | E18: 0.001263873428 | F18: 0.001222768694 | G18: 0.001182890743 | H18: 0.001144206831 | I18: 0.001106684957 | J18: 0.001070293855 | K18: 0.001035002975 | L18: 0.001000782477 | N18: 0.1 | O18: 0.5398278373 | P18: 0.5437953125 | Q18: 0.547758426 | R18: 0.5517167867 | S18: 0.5556700048 | T18: 0.5596176924 | U18: 0.5635594629 | V18: 0.5674949317 | W18: 0.5714237159 | X18: 0.5753454347 | AZ18: 32
B19: -2.9 | C19: 0.0018658133 | D19: 0.001807143781 | E19: 0.001750156929 | F19: 0.001694810019 | G19: 0.001641061234 | H19: 0.001588869647 | I19: 0.001538195212 | J19: 0.001488998745 | K19: 0.001441241917 | L19: 0.001394887235 | N19: 0.2 | O19: 0.5792597094 | P19: 0.5831661635 | Q19: 0.5870644226 | R19: 0.5909541151 | S19: 0.5948348717 | T19: 0.5987063257 | U19: 0.6025681132 | V19: 0.6064198732 | W19: 0.6102612476 | X19: 0.6140918812 | AZ19: 36
B20: -2.8 | C20: 0.00255513033 | D20: 0.002477074999 | E20: 0.002401182474 | F20: 0.002327400207 | G20: 0.002255676692 | H20: 0.002185961455 | I20: 0.00211820504 | J20: 0.002052358995 | K20: 0.001988375855 | L20: 0.001926209132 | N20: 0.3 | O20: 0.6179114222 | P20: 0.6217195218 | Q20: 0.6255158347 | R20: 0.6293000189 | S20: 0.633071736 | T20: 0.6368306512 | U20: 0.6405764332 | V20: 0.6443087548 | W20: 0.6480272924 | X20: 0.6517317265 | AZ20: 39
B21: -2.7 | C21: 0.003466973803 | D21: 0.003364160407 | E21: 0.003264095816 | F21: 0.003166716277 | G21: 0.003071959219 | H21: 0.002979763235 | I21: 0.002890068076 | J21: 0.002802814633 | K21: 0.002717944923 | L21: 0.002635402078 | N21: 0.4 | O21: 0.6554217416 | P21: 0.6590970262 | Q21: =NORMSDIST(0.42) -> 0.6627572732 | R21: 0.6664021794 | S21: 0.6700314463 | T21: 0.6736447797 | U21: 0.6772418897 | V21: 0.6808224912 | W21: 0.6843863035 | X21: 0.6879330506 | AR21: =N21+Q16 -> 0.42 | AZ21: 41
B22: -2.6 | C22: 0.004661188024 | D22: 0.004527111133 | E22: 0.004396488348 | F22: 0.004269243409 | G22: 0.004145301361 | H22: 0.004024588543 | I22: 0.003907032575 | J22: 0.003792562348 | K22: 0.003681108009 | L22: 0.003572600952 | N22: 0.5 | O22: 0.6914624613 | P22: 0.6949742691 | Q22: 0.6984682125 | R22: 0.7019440346 | S22: 0.7054014838 | T22: 0.7088403132 | U22: 0.7122602812 | V22: 0.715661151 | W22: 0.7190426911 | X22: 0.7224046752 | AZ22: 52
B23: -2.5 | C23: 0.006209665326 | D23: 0.00603655808 | E23: 0.005867741715 | F23: 0.005703126333 | G23: 0.005542623443 | H23: 0.005386145954 | I23: 0.005233608164 | J23: 0.005084925749 | K23: 0.004940015758 | L23: 0.004798796597 | N23: 0.6 | O23: 0.7257468822 | P23: 0.7290690962 | Q23: 0.7323711065 | R23: 0.7356527079 | S23: 0.7389137003 | T23: 0.7421538892 | U23: 0.7453730853 | V23: 0.7485711049 | W23: 0.7517477695 | X23: 0.7549029063 | AZ23: 54
B24: -2.4 | C24: 0.008197535925 | D24: 0.007976260261 | E24: 0.007760253551 | F24: 0.007549411416 | G24: 0.007343630955 | H24: 0.007142810735 | I24: 0.006946850789 | J24: 0.006755652607 | K24: 0.006569119136 | L24: 0.006387154765 | N24: 0.7 | O24: 0.7580363478 | P24: 0.7611479319 | Q24: 0.7642375022 | R24: 0.7673049077 | S24: 0.7703500028 | T24: 0.7733726476 | U24: 0.7763727076 | V24: 0.7793500537 | W24: 0.7823045624 | X24: 0.7852361158 | AZ24: 56
B25: -2.3 | C25: 0.01072411002 | D25: 0.01044407706 | E25: 0.01017043867 | F25: 0.009903075559 | G25: 0.009641869945 | H25: 0.009386705535 | I25: 0.009137467531 | J25: 0.00889404263 | K25: 0.008656319026 | L25: 0.008424186399 | N25: 0.8 | O25: 0.7881446014 | P25: 0.7910299121 | Q25: 0.7938919464 | R25: 0.7967306082 | S25: 0.7995458067 | T25: 0.8023374569 | U25: 0.8051054787 | V25: 0.8078497979 | W25: 0.8105703452 | X25: 0.813267057 | AZ25: 58
B26: -2.2 | C26: 0.01390344751 | D26: 0.01355258115 | E26: 0.01320938381 | F26: 0.01287372144 | G26: 0.01254546144 | H26: 0.01222447266 | I26: 0.01191062542 | J26: 0.01160379152 | K26: 0.01130384424 | L26: 0.01101065832 | N26: 0.9 | O26: 0.8159398747 | P26: 0.8185887451 | Q26: 0.8212136204 | R26: 0.8238144578 | S26: 0.8263912197 | T26: 0.8289438737 | U26: 0.8314723925 | V26: 0.8339767539 | W26: 0.8364569407 | X26: 0.8389129405 | AZ26: 66
B27: -2.1 | C27: 0.01786442056 | D27: 0.01742917794 | E27: 0.01700302265 | F27: 0.01658580668 | G27: 0.01617738337 | H27: 0.01577760739 | I27: 0.01538633478 | J27: 0.01500342297 | K27: 0.01462873078 | L27: 0.01426211841 | N27: 1 | O27: 0.8413447461 | P27: 0.843752355 | Q27: 0.8461357696 | R27: 0.8484949972 | S27: 0.8508300497 | T27: 0.8531409436 | U27: 0.8554277003 | V27: 0.8576903456 | W27: 0.8599289099 | X27: 0.862143428 | AZ27: 72
B28: -2 | C28: 0.02275013195 | D28: 0.02221559443 | E28: 0.02169169377 | F28: 0.02117826964 | G28: 0.02067516287 | H28: 0.02018221541 | I28: 0.01969927041 | J28: 0.01922617223 | K28: 0.01876276643 | L28: 0.01830889985 | N28: 1.1 | O28: 0.8643339391 | P28: 0.8665004868 | Q28: 0.868643119 | R28: 0.8707618878 | S28: 0.8728568494 | T28: 0.8749280644 | U28: 0.8769755969 | V28: 0.8789995156 | W28: 0.8809998925 | X28: 0.882976804 | AZ28: 73
B29: -1.9 | C29: 0.02871655982 | D29: 0.02806660666 | E29: 0.0274289497 | F29: 0.02680341888 | G29: 0.02618984494 | H29: 0.02558805952 | I29: 0.02499789515 | J29: 0.02441918528 | K29: 0.02385176434 | L29: 0.02329546775 | N29: 1.2 | O29: 0.8849303298 | P29: 0.8868605536 | Q29: 0.8887675626 | R29: 0.8906514476 | S29: 0.8925123029 | T29: 0.8943502263 | U29: 0.8961653189 | V29: 0.8979576849 | W29: 0.899727432 | X29: 0.901474671 | AZ29: 78
B30: -1.8 | C30: 0.03593031911 | D30: 0.03514789358 | E30: 0.03437950245 | F30: 0.03362496942 | G30: 0.03288411866 | H30: 0.0321567748 | I30: 0.03144276298 | J30: 0.03074190893 | K30: 0.03005403896 | L30: 0.02937898004 | N30: 1.3 | O30: 0.9031995154 | P30: 0.9049020822 | Q30: 0.906582491 | R30: 0.9082408643 | S30: 0.9098773275 | T30: 0.9114920086 | U30: 0.9130850381 | V30: 0.9146565492 | W30: 0.9162066776 | X30: 0.9177355613 | AZ30: 80
B31: -1.7 | C31: 0.04456546276 | D31: 0.04363293652 | E31: 0.04271622079 | F31: 0.04181513761 | G31: 0.04092950898 | H31: 0.04005915686 | I31: 0.03920390329 | J31: 0.03836357036 | K31: 0.03753798035 | L31: 0.0367269557 | N31: 1.4 | O31: 0.9192433408 | P31: 0.9207301585 | Q31: 0.9221961595 | R31: 0.9236414905 | S31: 0.9250663005 | T31: 0.9264707404 | U31: 0.927854963 | V31: 0.929219123 | W31: 0.9305633767 | X31: 0.931887882 | AZ31: 86
B32: -1.6 | C32: 0.0547992917 | D32: 0.05369892815 | E32: 0.05261613845 | F32: 0.05155074849 | G32: 0.05050258347 | H32: 0.04947146803 | I32: 0.04845722627 | J32: 0.0474596818 | K32: 0.04647865786 | L32: 0.04551397732 | N32: 1.5 | O32: 0.9331927987 | P32: 0.9344782879 | Q32: 0.9357445122 | R32: 0.9369916355 | S32: 0.9382198233 | T32: 0.939429242 | U32: 0.9406200594 | V32: 0.9417924444 | W32: 0.9429465668 | X32: 0.9440825975 | AZ32: 63
B33: -1.5 | C33: 0.06680720127 | D33: 0.06552171209 | E33: 0.06425548782 | F33: 0.06300836446 | G33: 0.06178017671 | H33: 0.060570758 | I33: 0.05937994059 | J33: 0.05820755564 | K33: 0.05705343324 | L33: 0.05591740252 | N33: 1.6 | O33: 0.9452007083 | P33: 0.9463010719 | Q33: 0.9473838615 | R33: 0.9484492515 | S33: 0.9494974165 | T33: 0.950528532 | U33: 0.9515427737 | V33: 0.9525403182 | W33: 0.9535213421 | X33: 0.9544860227
B34: -1.4 | C34: 0.08075665923 | D34: 0.07926984145 | E34: 0.07780384053 | F34: 0.07635850954 | G34: 0.07493369953 | H34: 0.07352925961 | I34: 0.07214503697 | J34: 0.07078087699 | K34: 0.06943662333 | L34: 0.06811211797 | N34: 1.7 | O34: 0.9554345372 | P34: 0.9563670635 | Q34: 0.9572837792 | R34: 0.9581848624 | S34: 0.959070491 | T34: 0.9599408431 | U34: 0.9607960967 | V34: 0.9616364296 | W34: 0.9624620197 | X34: 0.9632730443
B35: -1.3 | C35: 0.09680048459 | D35: 0.0950979178 | E35: 0.09341750899 | F35: 0.09175913565 | G35: 0.09012267246 | H35: 0.08850799144 | I35: 0.08691496195 | J35: 0.08534345082 | K35: 0.08379332242 | L35: 0.08226443868 | N35: 1.8 | O35: 0.9640696809 | P35: 0.9648521064 | Q35: 0.9656204976 | R35: 0.9663750306 | S35: 0.9671158813 | T35: 0.9678432252 | U35: 0.968557237 | V35: 0.9692580911 | W35: 0.969945961 | X35: 0.97062102
B36: -1.2 | C36: 0.1150696702 | D36: 0.1131394464 | E36: 0.1112324374 | F36: 0.1093485524 | G36: 0.1074876971 | H36: 0.1056497737 | I36: 0.1038346811 | J36: 0.1020423151 | K36: 0.100272568 | L36: 0.09852532905 | N36: 1.9 | O36: 0.9712834402 | P36: 0.9719333933 | Q36: 0.9725710503 | R36: 0.9731965811 | S36: 0.9738101551 | T36: 0.9744119405 | U36: 0.9750021049 | V36: 0.9755808147 | W36: 0.9761482357 | X36: 0.9767045322
B37: -1.1 | C37: 0.1356660609 | D37: 0.1334995132 | E37: 0.131356881 | F37: 0.1292381122 | G37: 0.1271431506 | H37: 0.1250719356 | I37: 0.1230244031 | J37: 0.1210004844 | K37: 0.1190001075 | L37: 0.117023196 | N37: 2 | O37: 0.9772498681 | P37: 0.9777844056 | Q37: 0.9783083062 | R37: 0.9788217304 | S37: 0.9793248371 | T37: 0.9798177846 | U37: 0.9803007296 | V37: 0.9807738278 | W37: 0.9812372336 | X37: 0.9816911001
B38: -1 | C38: 0.1586552539 | D38: 0.156247645 | E38: 0.1538642304 | F38: 0.1515050028 | G38: 0.1491699503 | H38: 0.1468590564 | I38: 0.1445722997 | J38: 0.1423096544 | K38: 0.1400710901 | L38: 0.137856572 | N38: 2.1 | O38: 0.9821355794 | P38: 0.9825708221 | Q38: 0.9829969774 | R38: 0.9834141933 | S38: 0.9838226166 | T38: 0.9842223926 | U38: 0.9846136652 | V38: 0.984996577 | W38: 0.9853712692 | X38: 0.9857378816
B39: -0.9 | C39: 0.1840601253 | D39: 0.1814112549 | E39: 0.1787863796 | F39: 0.1761855422 | G39: 0.1736087803 | H39: 0.1710561263 | I39: 0.1685276075 | J39: 0.1660232461 | K39: 0.1635430593 | L39: 0.1610870595 | N39: 2.2 | O39: 0.9860965525 | P39: 0.9864474189 | Q39: 0.9867906162 | R39: 0.9871262786 | S39: 0.9874545386 | T39: 0.9877755273 | U39: 0.9880893746 | V39: 0.9883962085 | W39: 0.9886961558 | X39: 0.9889893417
B40: -0.8 | C40: 0.2118553986 | D40: 0.2089700879 | E40: 0.2061080536 | F40: 0.2032693918 | G40: 0.2004541933 | H40: 0.1976625431 | I40: 0.1948945213 | J40: 0.1921502021 | K40: 0.1894296548 | L40: 0.186732943 | N40: 2.3 | O40: 0.98927589 | P40: 0.9895559229 | Q40: 0.9898295613 | R40: 0.9900969244 | S40: 0.9903581301 | T40: 0.9906132945 | U40: 0.9908625325 | V40: 0.9911059574 | W40: 0.991343681 | X40: 0.9915758136
B41: -0.7 | C41: 0.2419636522 | D41: 0.2388520681 | E41: 0.2357624978 | F41: 0.2326950923 | G41: 0.2296499972 | H41: 0.2266273524 | I41: 0.2236272924 | J41: 0.2206499463 | K41: 0.2176954376 | L41: 0.2147638842 | N41: 2.4 | O41: 0.9918024641 | P41: 0.9920237397 | Q41: 0.9922397464 | R41: 0.9924505886 | S41: 0.992656369 | T41: 0.9928571893 | U41: 0.9930531492 | V41: 0.9932443474 | W41: 0.9934308809 | X41: 0.9936128452
B42: -0.6 | C42: 0.2742531178 | D42: 0.2709309038 | E42: 0.2676288935 | F42: 0.2643472921 | G42: 0.2610862997 | H42: 0.2578461108 | I42: 0.2546269147 | J42: 0.2514288951 | K42: 0.2482522305 | L42: 0.2450970937 | N42: 2.5 | O42: 0.9937903347 | P42: 0.9939634419 | Q42: 0.9941322583 | R42: 0.9942968737 | S42: 0.9944573766 | T42: 0.994613854 | U42: 0.9947663918 | V42: 0.9949150743 | W42: 0.9950599842 | X42: 0.9952012034
B43: -0.5 | C43: 0.3085375387 | D43: 0.3050257309 | E43: 0.3015317875 | F43: 0.2980559654 | G43: 0.2945985162 | H43: 0.2911596868 | I43: 0.2877397188 | J43: 0.284338849 | K43: 0.2809573089 | L43: 0.2775953248 | N43: 2.6 | O43: 0.995338812 | P43: 0.9954728889 | Q43: 0.9956035117 | R43: 0.9957307566 | S43: 0.9958546986 | T43: 0.9959754115 | U43: 0.9960929674 | V43: 0.9962074377 | W43: 0.996318892 | X43: 0.996427399
B44: -0.4 | C44: 0.3445782584 | D44: 0.3409029738 | E44: 0.3372427268 | F44: 0.3335978206 | G44: 0.3299685537 | H44: 0.3263552203 | I44: 0.3227581103 | J44: 0.3191775088 | K44: 0.3156136965 | L44: 0.3120669494 | N44: 2.7 | O44: 0.9965330262 | P44: 0.9966358396 | Q44: 0.9967359042 | R44: 0.9968332837 | S44: 0.9969280408 | T44: 0.9970202368 | U44: 0.9971099319 | V44: 0.9971971854 | W44: 0.9972820551 | X44: 0.9973645979
B45: -0.3 | C45: 0.3820885778 | D45: 0.3782804782 | E45: 0.3744841653 | F45: 0.3706999811 | G45: 0.366928264 | H45: 0.3631693488 | I45: 0.3594235668 | J45: 0.3556912452 | K45: 0.3519727076 | L45: 0.3482682735 | N45: 2.8 | O45: 0.9974448697 | P45: 0.997522925 | Q45: 0.9975988175 | R45: 0.9976725998 | S45: 0.9977443233 | T45: 0.9978140385 | U45: 0.997881795 | V45: 0.997947641 | W45: 0.9980116241 | X45: 0.9980737909
B46: -0.2 | C46: 0.4207402906 | D46: 0.4168338365 | E46: 0.4129355774 | F46: 0.4090458849 | G46: 0.4051651283 | H46: 0.4012936743 | I46: 0.3974318868 | J46: 0.3935801268 | K46: 0.3897387524 | L46: 0.3859081188 | N46: 2.9 | O46: 0.9981341867 | P46: 0.9981928562 | Q46: 0.9982498431 | R46: 0.99830519 | S46: 0.9983589388 | T46: 0.9984111304 | U46: 0.9984618048 | V46: 0.9985110013 | W46: 0.9985587581 | X46: 0.9986051128
B47: -0.1 | C47: 0.4601721627 | D47: 0.4562046875 | E47: 0.452241574 | F47: 0.4482832133 | G47: 0.4443299952 | H47: 0.4403823076 | I47: 0.4364405371 | J47: 0.4325050683 | K47: 0.4285762841 | L47: 0.4246545653 | N47: 3 | O47: 0.998650102 | P47: 0.9986937616 | Q47: 0.9987361266 | R47: 0.9987772313 | S47: 0.9988171093 | T47: 0.9988557932 | U47: 0.998893315 | V47: 0.9989297061 | W47: 0.998964997 | X47: 0.9989992175
B48: 0 | C48: 0.5 | D48: 0.4960106437 | E48: 0.4920216863 | F48: 0.4880335266 | G48: 0.4840465631 | H48: 0.4800611942 | I48: 0.4760778173 | J48: 0.4720968298 | K48: 0.468118628 | L48: 0.4641436074 | N48: 3.1 | O48: 0.9990323968 | P48: 0.9990645633 | Q48: 0.9990957448 | R48: 0.9991259685 | S48: 0.9991552608 | T48: 0.9991836477 | U48: 0.9992111543 | V48: 0.9992378053 | W48: 0.9992636247 | X48: 0.999288636
B50: Example : Using the Z-score above
B52: Case 1: | C52: P (Z) < | E52: =IF(F4="","",F4) ->  | F52: =IF(F4="","","=") ->  | G52: =J4 ->  | J52: Area to the left, directly from the table | P52: =IF(F4="","",IF($E$52>=-3.19,"x","")) ->  | Q52: =IF(F4="","",IF($E$52>=-2.01,"x","")) ->  | R52: =IF(F4="","",IF($E$52>=-1.01,"x","")) ->  | S52: =IF(F4="","",IF($E$52>=-0.5,"x","")) ->  | T52: =IF(F4="","",IF($E$52>0,"x","")) ->  | U52: =IF(F4="","",IF($E$52>0.5,"x","")) ->  | V52: =IF(F4="","",IF($E$52>1,"x","")) ->  | W52: =IF(F4="","",IF($E$52>2,"x","")) ->  | X52: =IF(F4="","",IF($E$52>3.19,"x","")) ->  | AS52: =IF(G52="","",ROUND(G52,4)) -> 
F53: =IF(F4="","","=") ->  | G53: =G52 ->  | P53: P (Z) < | Q53: =IF(F4="","",F4&" = "&TEXT(G52,"0.0000")&" = ") ->  | S53: =G53 -> 
B55: Case 2: | C55: P (Z) > | E55: =IF(F4="","",F4) ->  | F55: =IF(F4="","","=") ->  | G55: =IF(F4="",""," 1 - "&TEXT(J4," 0.0000")&" = "&TEXT(AS55,"0.0000")) ->  | J55: Area to the right, 1 - (left area ) | P55: =IF($E$55<=-3.19,"x","") ->  | Q55: =IF($E$55<=-2.01,"x","") ->  | R55: =IF($E$55<=-1.01,"x","") ->  | S55: =IF($E$55<=-0.5,"x","") ->  | T55: =IF($E$55<=0,"x","") ->  | U55: =IF($E$55<=0.5,"x","") ->  | V55: =IF($E$55<=1.01,"x","") ->  | W55: =IF($E$55<=2,"x","") ->  | X55: =IF(AND($E$55<=3.19,F4<>0),"x","") ->  | Y55: =IF($E$52>-2,"x","") -> x | Z55: =IF($E$52>-1,"x","") -> x | AA55: =IF($E$52>-0.5,"x","") -> x | AB55: =IF($E$52>=0,"x","") -> x | AC55: =IF($E$52>0.5,"x","") -> x | AD55: =IF($E$52>1,"x","") -> x | AE55: =IF($E$52>2,"x","") -> x | AF55: =IF($E$52>2,"x","") -> x | AS55: =IF(G52="","",1-G52) -> 
F56: =IF(F4="","","=") ->  | G56: =IF(F4="","",AS55) ->  | K56: or, 1- (Table Value) | R56: P (Z) > | S56: =IF(F4="","",F4&" = ") ->  | T56: =IF(F4="","",G55&" = ") ->  | W56: =IF(F4="","",G56) ->  | AU56: =IF(V59="","",V59/100) -> 
B59: Case 3: | C59: Between two Z-scores such as: | G59: Z = | I59: and | J59: Z = | N59: Case 4 | O59: If Probability is given, find nearest Z-score | R59: Enter Probabilty (0 - 100%) = | W59: % | Y59: =IF($E$52>-2,"x","") -> x | Z59: =IF($E$52>-1,"x","") -> x | AA59: =IF($E$52>-0.5,"x","") -> x | AB59: =IF($E$52>=0,"x","") -> x | AC59: =IF($E$52>0.5,"x","") -> x | AD59: =IF($E$52>1,"x","") -> x | AE59: =IF($E$52>2,"x","") -> x | AF59: =IF($E$52>2,"x","") -> x | AS59: =IF(K60="","",K60-H60) ->  | AT59: =V59*100 -> 0 | AU59: =IF(V59="","",IF(OR(AU56>0.97,AU56<0.05,AU56=19),NORMSINV(AU56+0.0001),IF(AY59<>0,NORMSINV(AU56+0.002),NORMSINV(AU56+0.0007)))) ->  | AV59: =IF(V60<0,LEFT(V60,4),LEFT(V60,3)) ->  | AW59: =IF(AND(V60>=0,AW60=3),0,IF(AND(V60<0,AW60=5),0,IF(AND(V60>=0,AW60=1),0,IF(AND(V60<0,AW60=3),0,RIGHT(V60,1))))) ->  | AX59: =RIGHT(V59,1) ->  | AY59: =IFERROR(VLOOKUP(V59,AZ16:AZ32,1,FALSE),0) -> 0
D60: (Enter any z-score) | G60: P = | H60: =IF(OR(H59="",H59<-3.19,H59>=3.19),"",NORMSDIST(H59)) ->  | J60: P = | K60: =IF(OR(K59="",K59<-3.19,K59>=3.19),"",NORMSDIST(K59)) ->  | R60: =IF(OR(AU56="",AU56>100%,AU56<0),"","Covering at least "&AT59/100&" % , Z = ") ->  | V60: =IF(OR(AU56="",AU56>=100%,AU56<=0,AU63<>AU64),"",ROUND(AU59,2)) ->  | AU60: =IF(V59="","",NORMSDIST(V60)) ->  | AW60: =IF(V60<0,LEN(V60)+1,LEN(V60)) -> 0
C62: =IF(OR(H60="",K60="",K59<=H59,H59<=-3.19,K59>=3.19),""," Then Subtract, P = "&TEXT(K60,"0.0000")&" - "&TEXT(H60,"0.0000")&" = "&TEXT(AS59,"0.0000")) ->  | J62: =IF(OR(H59="",K59="",H59>=K59),"","Or") ->  | K62: =IF(OR(H59="",K59="",H59=""),"",IF(K59<H59,"Change Z-cores",AS59)) ->  | O62: =IF(OR(AU56="",AU56>100%,AU56<0,AU63<>AU64),"","Row =") ->  | P62: =IF(OR(AU56="",AU56>=100%,AU56<=0,AU63<>AU64),"",AV59*1) ->  | Q62: =IF(OR(AU56="",AU56>100%,AU56<0,AU63<>AU64),"","Column =") ->  | R62: =IF(OR(AU56="",AU56>=100%,AU56<=0,AU63<>AU64),"",(AW59*1)/100) ->  | T62: =IF(OR(V59="",V59>100,V59<0,AU63<>AU64),"","(See table score highlighted in yellow)") -> 
AU63: =V59 -> 0
AU64: =ROUND(AU63,0) -> 0

Sheet Sec 5.3
B2: First, read the example below, then use the template to solve a problem. | Q2: Fill Green Cells Only
B3: Example: | E3: Let X to be a normal variable with mean 400 and standard deviation 40. Find the following cases: | N3: Section 5.3: Random Variable Template
B5: Given: | N5: Given: | S5: Fill
D6: Expected Value, Mean = | G6: 400 | P6: Expected Value, Mean =
D7: Standard Deviation = | G7: 40 | P7: Standard Deviation =
D10: To find Z-score: | E10: If x = | F10: 350 | G10: =" Then Z = ("&F10&" - "&G6&") / "&G7 -> Then Z = (350 - 400) / 40 | P10: To find Z-score: | Q10: If x = | S10: =IF(OR(S6="",S7="",R10=""),"", " Then Z = ("&R10&" - "&S6&") / "&S7) -> 
G11: Z = | H11: =(F10-G6)/G7 -> -1.25 | S11: =IF(T11="",""," Z = ") ->  | T11: =IF(OR(S6="",S7="",R10=""),"",(R10-S6)/S7) -> 
C13: Case 1: | E13: Pr ( x < 350) | O13: Case 1: | Q13: Pr( x < a)
J16: Answer: | V16: Answer:
D17: Pr( x < | E17: 350 | F17: or P ( Z < | G17: -1.25 | H17: P = | J17: 0.1056 | N17: Pr( x < | Q17: or | R17: P ( Z < | S17: =IF(OR(S6="",S7="",P17=""),"",(P17-S6)/S7) ->  | T17: P = | V17: =IF(OR(S6="",S7="",P17=""),"",NORMSDIST(S17)) -> 
V18: =V17 -> 
C20: Case 2: | E20: Pr (x > 420) | O20: Case 2: | Q20: Pr( x > b)
J23: Answer: | V23: Answer:
D24: Pr( x > | E24: 420 | F24: or P ( Z > | G24: 0.5 | H24: P = | J24: 0.3085 | N24: Pr( x > | Q24: or | R24: P( Z > | S24: =IF(OR(S6="",S7="",P24=""),"",(P24-S6)/S7) ->  | T24: P = | V24: =IF(OR(S6="",S7="",P24=""),"",1-NORMSDIST(S24)) -> 
V25: =V24 -> 
C27: Case 3: | E27: Pr (360 < x < 410) | O27: Case 3: | Q27: Pr( a < x < b)
B31: 360 | D31: < x < | E31: 410 | F31: -1 | G31: < Z < | H31: 0.25 | P31: < x < | R31: =IF(OR(S6="",S7="",O31=""),"",(O31-S6)/S7) ->  | S31: < Z < | T31: =IF(OR(S6="",S7="",Q31=""),"",(Q31-S6)/S7) -> 
F32: 0.1586552539 | G32: < P < | H32: 0.5987063257 | J32: Answer: | R32: =IF(OR(S6="",S7="",O31="",Q31=""),"",NORMSDIST(R31)) ->  | S32: < P < | T32: =IF(OR(S6="",S7="",O31="",Q31=""),"",NORMSDIST(T31)) ->  | V32: Answer:
H33: P = | J33: 0.4401 | P33: =IF(V33<0,"Error, negative answer","") ->  | T33: P = | V33: =IF(OR(R32="",T32=""),"",(T32-R32)) -> 
V34: =V33 -> 
D36: The above is just an example already filled and solved | P36: Make sure to Allow Macro when you start the file

Sheet Z < 0
E2: Area Under The Standard Normal Curve (Z < 0)
B3: Z | C3: 0 | D3: 0.01 | E3: 0.02 | F3: 0.03 | G3: 0.04 | H3: 0.05 | I3: 0.06 | J3: 0.07 | K3: 0.08 | L3: 0.09
B4: -3.1 | C4: =NORMSDIST(B4-$C$3) -> 0.0009676032132 | D4: =NORMSDIST(B4-+$D$3) -> 0.0009354367195 | E4: =NORMSDIST(B4-$E$3) -> 0.0009042551998 | F4: =NORMSDIST(B4-$F$3) -> 0.0008740315156 | G4: =NORMSDIST(B4-$G$3) -> 0.0008447391735 | H4: =NORMSDIST(B4-$H$3) -> 0.0008163523128 | I4: =NORMSDIST(B4-$I$3) -> 0.0007888456944 | J4: =NORMSDIST(B4-$J$3) -> 0.0007621946881 | K4: =NORMSDIST(B4-$K$3) -> 0.0007363752616 | L4: =NORMSDIST(B4-$L$3) -> 0.0007113639686 | N4: Example: For Z - Score = -1.67
B5: -3 | C5: =NORMSDIST(B5-$C$3) -> 0.001349898032 | D5: =NORMSDIST(B5-+$D$3) -> 0.001306238449 | E5: =NORMSDIST(B5-$E$3) -> 0.001263873428 | F5: =NORMSDIST(B5-$F$3) -> 0.001222768694 | G5: =NORMSDIST(B5-$G$3) -> 0.001182890743 | H5: =NORMSDIST(B5-$H$3) -> 0.001144206831 | I5: =NORMSDIST(B5-$I$3) -> 0.001106684957 | J5: =NORMSDIST(B5-$J$3) -> 0.001070293855 | K5: =NORMSDIST(B5-$K$3) -> 0.001035002975 | L5: =NORMSDIST(B5-$L$3) -> 0.001000782477 | O5: First two digits for Row of -1.6
B6: -2.9 | C6: 0.0018658133 | D6: 0.001807143781 | E6: 0.001750156929 | F6: 0.001694810019 | G6: 0.001641061234 | H6: 0.001588869647 | I6: 0.001538195212 | J6: 0.001488998745 | K6: 0.001441241917 | L6: 0.001394887235 | O6: Third digit is for column 0.07
B7: -2.8 | C7: 0.00255513033 | D7: 0.002477074999 | E7: 0.002401182474 | F7: 0.002327400207 | G7: 0.002255676692 | H7: 0.002185961455 | I7: 0.00211820504 | J7: 0.002052358995 | K7: 0.001988375855 | L7: 0.001926209132 | O7: The value is = 0.0475
B8: -2.7 | C8: 0.003466973803 | D8: 0.003364160407 | E8: 0.003264095816 | F8: 0.003166716277 | G8: 0.003071959219 | H8: 0.002979763235 | I8: 0.002890068076 | J8: 0.002802814633 | K8: 0.002717944923 | L8: 0.002635402078
B9: -2.6 | C9: 0.004661188024 | D9: 0.004527111133 | E9: 0.004396488348 | F9: 0.004269243409 | G9: 0.004145301361 | H9: 0.004024588543 | I9: 0.003907032575 | J9: 0.003792562348 | K9: 0.003681108009 | L9: 0.003572600952
B10: -2.5 | C10: 0.006209665326 | D10: 0.00603655808 | E10: 0.005867741715 | F10: 0.005703126333 | G10: 0.005542623443 | H10: 0.005386145954 | I10: 0.005233608164 | J10: 0.005084925749 | K10: 0.004940015758 | L10: 0.004798796597
B11: -2.4 | C11: 0.008197535925 | D11: 0.007976260261 | E11: 0.007760253551 | F11: 0.007549411416 | G11: 0.007343630955 | H11: 0.007142810735 | I11: 0.006946850789 | J11: 0.006755652607 | K11: 0.006569119136 | L11: 0.006387154765
B12: -2.3 | C12: 0.01072411002 | D12: 0.01044407706 | E12: 0.01017043867 | F12: 0.009903075559 | G12: 0.009641869945 | H12: 0.009386705535 | I12: 0.009137467531 | J12: 0.00889404263 | K12: 0.008656319026 | L12: 0.008424186399
B13: -2.2 | C13: 0.01390344751 | D13: 0.01355258115 | E13: 0.01320938381 | F13: 0.01287372144 | G13: 0.01254546144 | H13: 0.01222447266 | I13: 0.01191062542 | J13: 0.01160379152 | K13: 0.01130384424 | L13: 0.01101065832
B14: -2.1 | C14: 0.01786442056 | D14: 0.01742917794 | E14: 0.01700302265 | F14: 0.01658580668 | G14: 0.01617738337 | H14: 0.01577760739 | I14: 0.01538633478 | J14: 0.01500342297 | K14: 0.01462873078 | L14: 0.01426211841
B15: -2 | C15: 0.02275013195 | D15: 0.02221559443 | E15: 0.02169169377 | F15: 0.02117826964 | G15: 0.02067516287 | H15: 0.02018221541 | I15: 0.01969927041 | J15: 0.01922617223 | K15: 0.01876276643 | L15: 0.01830889985
B16: -1.9 | C16: 0.02871655982 | D16: 0.02806660666 | E16: 0.0274289497 | F16: 0.02680341888 | G16: 0.02618984494 | H16: 0.02558805952 | I16: 0.02499789515 | J16: 0.02441918528 | K16: 0.02385176434 | L16: 0.02329546775
B17: -1.8 | C17: 0.03593031911 | D17: 0.03514789358 | E17: 0.03437950245 | F17: 0.03362496942 | G17: 0.03288411866 | H17: 0.0321567748 | I17: 0.03144276298 | J17: 0.03074190893 | K17: 0.03005403896 | L17: 0.02937898004
B18: -1.7 | C18: 0.04456546276 | D18: 0.04363293652 | E18: 0.04271622079 | F18: 0.04181513761 | G18: 0.04092950898 | H18: 0.04005915686 | I18: 0.03920390329 | J18: 0.03836357036 | K18: 0.03753798035 | L18: 0.0367269557
B19: -1.6 | C19: 0.0547992917 | D19: 0.05369892815 | E19: 0.05261613845 | F19: 0.05155074849 | G19: 0.05050258347 | H19: 0.04947146803 | I19: 0.04845722627 | J19: 0.0474596818 | K19: 0.04647865786 | L19: 0.04551397732
B20: -1.5 | C20: 0.06680720127 | D20: 0.06552171209 | E20: 0.06425548782 | F20: 0.06300836446 | G20: 0.06178017671 | H20: 0.060570758 | I20: 0.05937994059 | J20: 0.05820755564 | K20: 0.05705343324 | L20: 0.05591740252
B21: -1.4 | C21: 0.08075665923 | D21: 0.07926984145 | E21: 0.07780384053 | F21: 0.07635850954 | G21: 0.07493369953 | H21: 0.07352925961 | I21: 0.07214503697 | J21: 0.07078087699 | K21: 0.06943662333 | L21: 0.06811211797
B22: -1.3 | C22: 0.09680048459 | D22: 0.0950979178 | E22: 0.09341750899 | F22: 0.09175913565 | G22: 0.09012267246 | H22: 0.08850799144 | I22: 0.08691496195 | J22: 0.08534345082 | K22: 0.08379332242 | L22: 0.08226443868
B23: -1.2 | C23: 0.1150696702 | D23: 0.1131394464 | E23: 0.1112324374 | F23: 0.1093485524 | G23: 0.1074876971 | H23: 0.1056497737 | I23: 0.1038346811 | J23: 0.1020423151 | K23: 0.100272568 | L23: 0.09852532905
B24: -1.1 | C24: 0.1356660609 | D24: 0.1334995132 | E24: 0.131356881 | F24: 0.1292381122 | G24: 0.1271431506 | H24: 0.1250719356 | I24: 0.1230244031 | J24: 0.1210004844 | K24: 0.1190001075 | L24: 0.117023196
B25: -1 | C25: 0.1586552539 | D25: 0.156247645 | E25: 0.1538642304 | F25: 0.1515050028 | G25: 0.1491699503 | H25: 0.1468590564 | I25: 0.1445722997 | J25: 0.1423096544 | K25: 0.1400710901 | L25: 0.137856572
B26: -0.9 | C26: 0.1840601253 | D26: 0.1814112549 | E26: 0.1787863796 | F26: 0.1761855422 | G26: 0.1736087803 | H26: 0.1710561263 | I26: 0.1685276075 | J26: 0.1660232461 | K26: 0.1635430593 | L26: 0.1610870595
B27: -0.8 | C27: 0.2118553986 | D27: 0.2089700879 | E27: 0.2061080536 | F27: 0.2032693918 | G27: 0.2004541933 | H27: 0.1976625431 | I27: 0.1948945213 | J27: 0.1921502021 | K27: 0.1894296548 | L27: 0.186732943
B28: -0.7 | C28: 0.2419636522 | D28: 0.2388520681 | E28: 0.2357624978 | F28: 0.2326950923 | G28: 0.2296499972 | H28: 0.2266273524 | I28: 0.2236272924 | J28: 0.2206499463 | K28: 0.2176954376 | L28: 0.2147638842
B29: -0.6 | C29: 0.2742531178 | D29: 0.2709309038 | E29: 0.2676288935 | F29: 0.2643472921 | G29: 0.2610862997 | H29: 0.2578461108 | I29: 0.2546269147 | J29: 0.2514288951 | K29: 0.2482522305 | L29: 0.2450970937
B30: -0.5 | C30: 0.3085375387 | D30: 0.3050257309 | E30: 0.3015317875 | F30: 0.2980559654 | G30: 0.2945985162 | H30: 0.2911596868 | I30: 0.2877397188 | J30: 0.284338849 | K30: 0.2809573089 | L30: 0.2775953248
B31: -0.4 | C31: 0.3445782584 | D31: 0.3409029738 | E31: 0.3372427268 | F31: 0.3335978206 | G31: 0.3299685537 | H31: 0.3263552203 | I31: 0.3227581103 | J31: 0.3191775088 | K31: 0.3156136965 | L31: 0.3120669494
B32: -0.3 | C32: 0.3820885778 | D32: 0.3782804782 | E32: 0.3744841653 | F32: 0.3706999811 | G32: 0.366928264 | H32: 0.3631693488 | I32: 0.3594235668 | J32: 0.3556912452 | K32: 0.3519727076 | L32: 0.3482682735
B33: -0.2 | C33: 0.4207402906 | D33: 0.4168338365 | E33: 0.4129355774 | F33: 0.4090458849 | G33: 0.4051651283 | H33: 0.4012936743 | I33: 0.3974318868 | J33: 0.3935801268 | K33: 0.3897387524 | L33: 0.3859081188
B34: -0.1 | C34: 0.4601721627 | D34: 0.4562046875 | E34: 0.452241574 | F34: 0.4482832133 | G34: 0.4443299952 | H34: 0.4403823076 | I34: 0.4364405371 | J34: 0.4325050683 | K34: 0.4285762841 | L34: 0.4246545653
B35: 0 | C35: 0.5 | D35: 0.4960106437 | E35: 0.4920216863 | F35: 0.4880335266 | G35: 0.4840465631 | H35: 0.4800611942 | I35: 0.4760778173 | J35: 0.4720968298 | K35: 0.468118628 | L35: 0.4641436074

Sheet Z > 0
E2: Area Under The Standard Normal Curve (Z > 0)
B3: Z | C3: 0 | D3: 0.01 | E3: 0.02 | F3: 0.03 | G3: 0.04 | H3: 0.05 | I3: 0.06 | J3: 0.07 | K3: 0.08 | L3: 0.09
B4: 0 | C4: =NORMSDIST(B4+$C$3) -> 0.5 | D4: =NORMSDIST(B4+$D$3) -> 0.5039893563 | E4: =NORMSDIST(B4+$E$3) -> 0.5079783137 | F4: =NORMSDIST(B4+$F$3) -> 0.5119664734 | G4: =NORMSDIST(B4+$G$3) -> 0.5159534369 | H4: =NORMSDIST(B4+$H$3) -> 0.5199388058 | I4: =NORMSDIST(B4+$I$3) -> 0.5239221827 | J4: =NORMSDIST(B4+$J$3) -> 0.5279031702 | K4: =NORMSDIST(B4+$K$3) -> 0.531881372 | L4: =NORMSDIST(B4+$L$3) -> 0.5358563926 | N4: Example: For Z - Score = 1.45
B5: 0.1 | C5: =NORMSDIST(B5+$C$3) -> 0.5398278373 | D5: =NORMSDIST(B5+$D$3) -> 0.5437953125 | E5: =NORMSDIST(B5+$E$3) -> 0.547758426 | F5: =NORMSDIST(B5+$F$3) -> 0.5517167867 | G5: =NORMSDIST(B5+$G$3) -> 0.5556700048 | H5: =NORMSDIST(B5+$H$3) -> 0.5596176924 | I5: =NORMSDIST(B5+$I$3) -> 0.5635594629 | J5: =NORMSDIST(B5+$J$3) -> 0.5674949317 | K5: =NORMSDIST(B5+$K$3) -> 0.5714237159 | L5: =NORMSDIST(B5+$L$3) -> 0.5753454347 | O5: First two digits for Row of 1.4
B6: 0.2 | C6: 0.5792597094 | D6: 0.5831661635 | E6: 0.5870644226 | F6: 0.5909541151 | G6: 0.5948348717 | H6: 0.5987063257 | I6: 0.6025681132 | J6: 0.6064198732 | K6: 0.6102612476 | L6: 0.6140918812 | O6: Third digit is for column 0.05
B7: 0.3 | C7: 0.6179114222 | D7: 0.6217195218 | E7: 0.6255158347 | F7: 0.6293000189 | G7: 0.633071736 | H7: 0.6368306512 | I7: 0.6405764332 | J7: 0.6443087548 | K7: 0.6480272924 | L7: 0.6517317265 | O7: The value is = 0.9265
B8: 0.4 | C8: 0.6554217416 | D8: 0.6590970262 | E8: 0.6627572732 | F8: 0.6664021794 | G8: 0.6700314463 | H8: 0.6736447797 | I8: 0.6772418897 | J8: 0.6808224912 | K8: 0.6843863035 | L8: 0.6879330506
B9: 0.5 | C9: 0.6914624613 | D9: 0.6949742691 | E9: 0.6984682125 | F9: 0.7019440346 | G9: 0.7054014838 | H9: 0.7088403132 | I9: 0.7122602812 | J9: 0.715661151 | K9: 0.7190426911 | L9: 0.7224046752
B10: 0.6 | C10: 0.7257468822 | D10: 0.7290690962 | E10: 0.7323711065 | F10: 0.7356527079 | G10: 0.7389137003 | H10: 0.7421538892 | I10: 0.7453730853 | J10: 0.7485711049 | K10: 0.7517477695 | L10: 0.7549029063
B11: 0.7 | C11: 0.7580363478 | D11: 0.7611479319 | E11: 0.7642375022 | F11: 0.7673049077 | G11: 0.7703500028 | H11: 0.7733726476 | I11: 0.7763727076 | J11: 0.7793500537 | K11: 0.7823045624 | L11: 0.7852361158
B12: 0.8 | C12: 0.7881446014 | D12: 0.7910299121 | E12: 0.7938919464 | F12: 0.7967306082 | G12: 0.7995458067 | H12: 0.8023374569 | I12: 0.8051054787 | J12: 0.8078497979 | K12: 0.8105703452 | L12: 0.813267057
B13: 0.9 | C13: 0.8159398747 | D13: 0.8185887451 | E13: 0.8212136204 | F13: 0.8238144578 | G13: 0.8263912197 | H13: 0.8289438737 | I13: 0.8314723925 | J13: 0.8339767539 | K13: 0.8364569407 | L13: 0.8389129405
B14: 1 | C14: 0.8413447461 | D14: 0.843752355 | E14: 0.8461357696 | F14: 0.8484949972 | G14: 0.8508300497 | H14: 0.8531409436 | I14: 0.8554277003 | J14: 0.8576903456 | K14: 0.8599289099 | L14: 0.862143428
B15: 1.1 | C15: 0.8643339391 | D15: 0.8665004868 | E15: 0.868643119 | F15: 0.8707618878 | G15: 0.8728568494 | H15: 0.8749280644 | I15: 0.8769755969 | J15: 0.8789995156 | K15: 0.8809998925 | L15: 0.882976804
B16: 1.2 | C16: 0.8849303298 | D16: 0.8868605536 | E16: 0.8887675626 | F16: 0.8906514476 | G16: 0.8925123029 | H16: 0.8943502263 | I16: 0.8961653189 | J16: 0.8979576849 | K16: 0.899727432 | L16: 0.901474671
B17: 1.3 | C17: 0.9031995154 | D17: 0.9049020822 | E17: 0.906582491 | F17: 0.9082408643 | G17: 0.9098773275 | H17: 0.9114920086 | I17: 0.9130850381 | J17: 0.9146565492 | K17: 0.9162066776 | L17: 0.9177355613
B18: 1.4 | C18: 0.9192433408 | D18: 0.9207301585 | E18: 0.9221961595 | F18: 0.9236414905 | G18: 0.9250663005 | H18: 0.9264707404 | I18: 0.927854963 | J18: 0.929219123 | K18: 0.9305633767 | L18: 0.931887882
B19: 1.5 | C19: 0.9331927987 | D19: 0.9344782879 | E19: 0.9357445122 | F19: 0.9369916355 | G19: 0.9382198233 | H19: 0.939429242 | I19: 0.9406200594 | J19: 0.9417924444 | K19: 0.9429465668 | L19: 0.9440825975
B20: 1.6 | C20: 0.9452007083 | D20: 0.9463010719 | E20: 0.9473838615 | F20: 0.9484492515 | G20: 0.9494974165 | H20: 0.950528532 | I20: 0.9515427737 | J20: 0.9525403182 | K20: 0.9535213421 | L20: 0.9544860227
B21: 1.7 | C21: 0.9554345372 | D21: 0.9563670635 | E21: 0.9572837792 | F21: 0.9581848624 | G21: 0.959070491 | H21: 0.9599408431 | I21: 0.9607960967 | J21: 0.9616364296 | K21: 0.9624620197 | L21: 0.9632730443
B22: 1.8 | C22: 0.9640696809 | D22: 0.9648521064 | E22: 0.9656204976 | F22: 0.9663750306 | G22: 0.9671158813 | H22: 0.9678432252 | I22: 0.968557237 | J22: 0.9692580911 | K22: 0.969945961 | L22: 0.97062102
B23: 1.9 | C23: 0.9712834402 | D23: 0.9719333933 | E23: 0.9725710503 | F23: 0.9731965811 | G23: 0.9738101551 | H23: 0.9744119405 | I23: 0.9750021049 | J23: 0.9755808147 | K23: 0.9761482357 | L23: 0.9767045322
B24: 2 | C24: 0.9772498681 | D24: 0.9777844056 | E24: 0.9783083062 | F24: 0.9788217304 | G24: 0.9793248371 | H24: 0.9798177846 | I24: 0.9803007296 | J24: 0.9807738278 | K24: 0.9812372336 | L24: 0.9816911001
B25: 2.1 | C25: 0.9821355794 | D25: 0.9825708221 | E25: 0.9829969774 | F25: 0.9834141933 | G25: 0.9838226166 | H25: 0.9842223926 | I25: 0.9846136652 | J25: 0.984996577 | K25: 0.9853712692 | L25: 0.9857378816
B26: 2.2 | C26: 0.9860965525 | D26: 0.9864474189 | E26: 0.9867906162 | F26: 0.9871262786 | G26: 0.9874545386 | H26: 0.9877755273 | I26: 0.9880893746 | J26: 0.9883962085 | K26: 0.9886961558 | L26: 0.9889893417
B27: 2.3 | C27: 0.98927589 | D27: 0.9895559229 | E27: 0.9898295613 | F27: 0.9900969244 | G27: 0.9903581301 | H27: 0.9906132945 | I27: 0.9908625325 | J27: 0.9911059574 | K27: 0.991343681 | L27: 0.9915758136
B28: 2.4 | C28: 0.9918024641 | D28: 0.9920237397 | E28: 0.9922397464 | F28: 0.9924505886 | G28: 0.992656369 | H28: 0.9928571893 | I28: 0.9930531492 | J28: 0.9932443474 | K28: 0.9934308809 | L28: 0.9936128452
B29: 2.5 | C29: 0.9937903347 | D29: 0.9939634419 | E29: 0.9941322583 | F29: 0.9942968737 | G29: 0.9944573766 | H29: 0.994613854 | I29: 0.9947663918 | J29: 0.9949150743 | K29: 0.9950599842 | L29: 0.9952012034
B30: 2.6 | C30: 0.995338812 | D30: 0.9954728889 | E30: 0.9956035117 | F30: 0.9957307566 | G30: 0.9958546986 | H30: 0.9959754115 | I30: 0.9960929674 | J30: 0.9962074377 | K30: 0.996318892 | L30: 0.996427399
B31: 2.7 | C31: 0.9965330262 | D31: 0.9966358396 | E31: 0.9967359042 | F31: 0.9968332837 | G31: 0.9969280408 | H31: 0.9970202368 | I31: 0.9971099319 | J31: 0.9971971854 | K31: 0.9972820551 | L31: 0.9973645979
B32: 2.8 | C32: 0.9974448697 | D32: 0.997522925 | E32: 0.9975988175 | F32: 0.9976725998 | G32: 0.9977443233 | H32: 0.9978140385 | I32: 0.997881795 | J32: 0.997947641 | K32: 0.9980116241 | L32: 0.9980737909
B33: 2.9 | C33: 0.9981341867 | D33: 0.9981928562 | E33: 0.9982498431 | F33: 0.99830519 | G33: 0.9983589388 | H33: 0.9984111304 | I33: 0.9984618048 | J33: 0.9985110013 | K33: 0.9985587581 | L33: 0.9986051128
B34: 3 | C34: 0.998650102 | D34: 0.9986937616 | E34: 0.9987361266 | F34: 0.9987772313 | G34: 0.9988171093 | H34: 0.9988557932 | I34: 0.998893315 | J34: 0.9989297061 | K34: 0.998964997 | L34: 0.9989992175
B35: 3.1 | C35: 0.9990323968 | D35: 0.9990645633 | E35: 0.9990957448 | F35: 0.9991259685 | G35: 0.9991552608 | H35: 0.9991836477 | I35: 0.9992111543 | J35: 0.9992378053 | K35: 0.9992636247 | L35: 0.999288636

Sheet Background (hidden)
C2: Hint 1: | D2: Straight Average VS Weighted Average: | T2: The Variance: | W2: Standard Seviation
D3: Weighted Average = average where each value has a specific weight or frequency
D4: Example: The following were 5 different Unit Prices in 11 projects distubuted as: | S4: They are measures of how spread out a distribution is.
E5: = | F5: 100, 90, 90, 85, 80, 80, 75, 75, 75, 75, 75 | S5: In other words, they are measures of variability.
E6: = | F6: 11
D7: Straight (normal) Average: (100 + 90 + 85 + 80 + 75)/ 5 = 86 | S7: σ : Population standard deviation (n > 30)
D8: Weighted Average: (100x1 + 90 x2 + 85x1 + 80x2 + 75x5) / 11 = 81.82
D10: Median: is the middle point , in which half the numbers are above the median and half are below.
D11: Median of the prices above is = 80 (5 above and 5 below) | U11: Weighted Average of a population
U12: The population Number
T13: Excel Formula to find σ =STDEV.P
S15: s: Sample standard deviation (n < 30)
U20: Weighted Average of a sample
F21: Left, negatively skewed | J21: Symmetric | M21: Right, positively skewed | U21: The population Number
T22: Excel Formula to find s =STDEV.S
C25: Hint 2: | D25: Limit: Confidence Interval | L25: Formulas Used
D26: Common level of confidence Interval = 95% | U26: Standard Normal Distribution, Z- table
M27: Number of record, n > 30 | T27: For Prob = 47.5% (covering 95% total), Z-score is = 1.96
K31: Using the Z table.
K32: Standard Normal Distribution
K33: σ: Population standard deviation.
D35: Example: | K35: Example 1: For 95% Confidence interval:
D36: If the weighted average is $70, and the 95% confidence level = $68 - $74 | L36: Prob = 47.5% on each side, Borders: 2.5%
D37: Then, 95% of prices should be within that limit or between $68 and $74 | L37: Or: Z = 1.96 for 0.4750, 47.5% from table
D38: (47.5% below and 47.5% above the weighted average)
T41: * Excel uses the border values in the formula
K42: Example 2: For 30% Confidence interval: | T42: For 95%, then the borders are (1-0.95)/2 = 0.025
L43: Prob = 15% on each side, Borders: 35% | T43: The other border is (1 - 0.025) = 0.9750
L44: Or: Z = approx. 0.385 from table | U44: =NORMSINV(0.025)= -1.95996 = -1.96
U45: =NORMSINV(0.975) = 1.95996 = 1.96
K46: * Excel Formula to find Z for 95%: =NORMSINV(0.025)
D47: Optional: By selecting any range such as 30% | M47: Number of record, n < 30
D48: If the prices are: $69 - $72 within the 30% range, then:
K52: Using the t table with Degrees of Freedom df = n - 1.
K53: t distribution (Student's distribution)
K54: s: Sample standard deviation.
K55: For 95% Confidence interval, Prob = 0.05 for 2 tailed (used)
K56: For 95% Confidence interval, Prob = 0.025 for 1 tailed
D57: (15% below and 15% above the weighted average) | K57: Excel Formula to find t for 95%: = TINV(0.05, df)

Sheet Forecast (hidden)
A1: Note; The following is advance statistical analysis for information only
B3: Confidence and prediction intervals for forecasted values
B4: http://www.real-statistics.com/regression/confidence-and-prediction-intervals/
B7: The 95% confidence interval for the forecasted values ŷ of x is
B9: where
B12: This means that there is a 95% probability that the true linear regression line of the population will lie within the confidence interval of the regression line calculated from the sample data.
B23: Figure 1 – Confidence vs. prediction intervals
B24: In the graph on the left , a linear regression line is calculated to fit the sample data points. The confidence interval consists of the space between the two curves (dotted lines). Thus there is a 95% probability that the true best-fit line for the population lies within the confidence interval (e.g. any of the lines in the figure on the right above).
B25: There is also a concept called prediction interval. Here we look at any specific value of x, x0, and find an interval around the predicted value ŷ0 for x0 such that there is a 95% probability that the real value of y (in the population) corresponding to x0 is within this interval (see the graph on the right side of Figure 1).
B26: The 95% prediction interval of the forecasted value ŷ0 for x0 is
B28: where the standard error of the prediction is
B32: For any specific value x0 the prediction interval is more meaningful than the confidence interval.
B34: Example 1: Find the 95% confidence and prediction intervals for the forecasted life expectancy for men who smoke 20 cigarettes in Example 1 of Method of Least Squares.
B53: Figure 2 – Confidence and prediction intervals
B54: Referring to Figure 2, we see that the forecasted value for 20 cigarettes is given by FORECAST(20,B4:B18,A4:A18) = 73.16. The confidence interval, calculated using the standard error 2.06 (found in cell E12), is (68.70, 77.61).
B56: The prediction interval is calculated in a similar way using the prediction standard error of 8.24 (found in cell J12). Thus life expectancy of men who smoke 20 cigarettes is in the interval (55.36, 90.95) with 95% probability.
B58: Example 2: Test whether the y-intercept is 0.
B59: We use the same approach as that used in Example 1 to find the confidence interval of ŷ when x = 0 (this is the y-intercept). The result is given in column M of Figure 2. Here the standard error is
B66: and so the confidence interval is
B70: Since 0 is not in this interval, the null hypothesis that the y-intercept is zero is rejected.
